Cogmind - Beta 13 @@@ ROGUE MODE // 2024.05.04 @ 13:23:00 Player: orthostice Result: Destroyed by H-61 Shepherd with Heavy Assault Cannon Performance ------------- Evolutions (2) 1000 Regions Visited (4) 800 Robots Destroyed (29) 145 Value Destroyed (757) 757 Prototype IDs (1) 20 Alien Tech Used (0) 0 Bonus (0) 0 TOTAL SCORE: 2722 Bonus ------- None Cogmind --------- Core Integrity 0/550 Matter 300/300 Energy 100/100 System Corruption 2% Temperature Cool (0) Movement Core (900) Ox17 Location -8/Materials Parts ------- > --- POWER (1) -------- (None) > --- PROPULSION (5) --- (None) > --- UTILITY (2) ------ High-capacity Storage Unit Sensor Drone Bay (19/20) > --- WEAPON (3) ------- (None) > --- INVENTORY (20) --- Medium Storage Unit Large Storage Unit Structural Scanner Structural Scanner Peak State ------------ > --- POWER ------------ Light Nuclear Core > --- PROPULSION ------- Light Treads Light Treads Light Treads Light Treads > --- UTILITY ---------- Improved Heat Sink Medium Storage Unit > --- WEAPON ----------- Medium Laser Beam Cannon > --- INVENTORY -------- Light Ion Engine Aluminum Leg Aluminum Leg Structural Scanner Structural Scanner Sensor Drone Bay Assault Rifle Grenade Launcher [Rating: 14] Favorites ----------- Power Light Nuclear Core Engine Light Ion Engine Power Core Light Nuclear Core Propulsion Light Treads Treads Light Treads Leg Aluminum Leg Utility Medium Storage Unit Device Improved Heat Sink Storage Medium Storage Unit Processor Advanced Visual Processing Unit Protection Propulsion Shielding Weapon Beam Cannon Energy Gun Medium Laser Energy Cannon Beam Cannon Ballistic Gun Assault Rifle Launcher Grenade Launcher Build | -11 -10 -10 -9 -8 ------- Run | Yrd Mat Min Mat Mat Slots Evolved 4 | . . . 2 2 Power . | . . . . . Propulsion 3 | . . . 2 1 Utility . | . . . . . Weapon 1 | . . . . 1 Parts Attached 32 | 9 7 . 8 8 Power 5 | 3 1 . 1 . Engine 4 | 3 . . 1 . Core 1 | . 1 . . . Reactor . | . . . . . Propulsion 7 | 2 . . 3 2 Treads 5 | 2 . . 3 . Leg 2 | . . . . 2 Wheel . | . . . . . Hover . | . . . . . Flight . | . . . . . Utility 9 | 1 4 . 1 3 Device 3 | . 2 . . 1 Storage 4 | 1 1 . 1 1 Processor 1 | . . . . 1 Hackware . | . . . . . Protection 1 | . 1 . . . Artifact . | . . . . . Weapon 11 | 3 2 . 3 3 Energy Gun 6 | 2 1 . 2 1 Energy Cannon 1 | . 1 . . . Ballistic Gun 2 | 1 . . . 1 Ballistic Cannon . | . . . . . Launcher 2 | . . . 1 1 Special Weapon . | . . . . . Impact Weapon . | . . . . . Slashing Weapon . | . . . . . Piercing Weapon . | . . . . . Special Melee Weapon . | . . . . . Unidentified Prototypes 1 | . . . . 1 Parts Lost 16 | . . . 4 12 Power 2 | . . . 1 1 Propulsion 7 | . . . 2 5 Utility 1 | . . . . 1 Weapon 6 | . . . 1 5 Highest Loss Streak 11 | . . . 2 11 To Critical Strikes 1 | . . . . 1 Average Slot Usage (%) 87 | . 98 100 87 47 Engine 5 | . 7 . 3 3 Core 6 | . 6 14 5 . Treads 25 | . 28 28 35 10 Leg 1 | . . . . 7 Device 8 | . 6 14 11 7 Storage 12 | . 14 14 11 9 Protection 3 | . 6 . . . Energy Gun 11 | . 14 14 5 5 Energy Cannon 11 | . 13 14 11 2 Naked Turns . | . . . . . Heaviest Build 56 | 14 23 21 30 56 Greatest Support 80 | 40 40 40 80 60 Greatest Overweight (x) 18 | 4 . . . 18 Average Overweight (x) . | . . . . 2 Largest Inventory Capacity 20 | 8 10 10 15 20 Average Capacity 11 | 7 9 10 10 17 Most Carried 10 | 4 10 10 9 7 Average Carried 7 | 2 8 9 8 5 Final Capacity 20 | 8 10 10 15 20 Final Carried 10 | 4 10 10 8 4 Class Distribution -------------------- 80% | Mutant 19% | Scavenger-Mutant Dominant Class ---------------- Mutant | -10/Materials Mutant | -10/Mines Scavenger-Mutant | -9/Materials Mutant | -8/Materials Resources | -11 -10 -10 -9 -8 ----------- Run | Yrd Mat Min Mat Mat Matter Collected 550 | 227 130 . 94 99 Remotely . | . . . . . Salvage Created 878 | . 381 85 268 144 Parts 60 | . 32 2 14 12 Haulers Intercepted 1 | . 1 . . . Recyclers Shooed . | . . . . . Parts Field Recycled . | . . . . . Retrieved Matter . | . . . . . Parts Self-Destructed . | . . . . . Prevented . | . . . . . Kills | -11 -10 -10 -9 -8 ------- Run | Yrd Mat Min Mat Mat Combat Hostiles Destroyed 23 | . 8 2 8 5 Guns 8 | . 2 1 1 4 Cannons 9 | . 6 1 1 1 AOE 6 | . . . 6 . Classes Destroyed 9 | . 5 . 2 2 Worker 1 | . . . . 1 Builder 3 | . 3 . . . Hauler 1 | . 1 . . . Watcher 1 | . 1 . . . Swarmer 7 | . 3 . . 4 Grunt 12 | . 5 2 5 . Brawler 1 | . . . 1 . Sentry 2 | . . . 2 . Specialist 1 | . . . . 1 Best Kill Streak 5 | . 5 2 5 5 Combat Bots Only 5 | . 4 2 5 4 Max Kills in Single Turn 2 | . 1 1 2 2 Gunslinging . | . . . . . Exploded 2 | . . . 2 . Melee . | . . . . . Uniques/NPCs Destroyed . | . . . . . Combat | -11 -10 -10 -9 -8 -------- Run | Yrd Mat Min Mat Mat Hostile Shots Fired 238 | . 25 9 55 149 Missed 76 | . 6 . 16 54 Damage Taken 2433 | . 208 118 559 1548 Core 720 | . 36 23 77 584 Absorbed by Shields . | . . . . . Redirected to Shielding 31 | . 31 . . . Core Remaining (%) 85 | 100 . 76 80 . Volleys Fired 78 | . 28 7 18 25 Largest 2 | . 2 2 2 2 Hottest 116 | . 110 110 110 116 Shots Fired 119 | . 56 14 21 28 Gun 65 | . 28 7 3 27 Cannon 47 | . 28 7 11 1 Launcher 7 | . . . 7 . Special . | . . . . . Kinetic 9 | . . . . 9 Thermal 103 | . 56 14 14 19 Explosive 7 | . . . 7 . Electromagnetic . | . . . . . Robot Hit Streak 8 | . 8 5 7 6 Robot Miss Streak 3 | . 2 1 3 2 Penetration Max . | . . . . . Secondary Targets . | . . . . . Shots Hit Robots 80 | . 37 11 13 19 Core Hits 44 | . 16 5 15 8 Critical Kills . | . . . . . Critical Parts Destroyed . | . . . . . Critical Strikes 2 | . . 1 . 1 Burn 2 | . . 1 . 1 Melee Attacks . | . . . . . Impact . | . . . . . Slashing . | . . . . . Piercing . | . . . . . Sneak Attacks . | . . . . . Combat Hostiles . | . . . . . Follow-up Attacks . | . . . . . Damage Inflicted 1548 | . 574 168 516 290 Guns 609 | . 250 75 12 272 Cannons 580 | . 316 89 158 17 Explosions 346 | . . . 346 . Melee . | . . . . . Ramming 13 | . 8 4 . 1 Kinetic 63 | . . . . 63 Thermal 1126 | . 566 164 170 226 Explosive 346 | . . . 346 . Electromagnetic . | . . . . . Impact . | . . . . . Slashing . | . . . . . Piercing . | . . . . . Highest Corruption 2 | . . . . 2 Average Corruption 2 | . . . . 2 Corruption Purged . | . . . . . Corruption Blocked . | . . . . . Effects 1 | . . . . 1 Message Errors 1 | . . . . 1 Overload Shots . | . . . . . Overflow Damage . | . . . . . Projectiles . | . . . . . Explosions . | . . . . . Melee . | . . . . . Knockbacks . | . . . . . Impact . | . . . . . Kinetic . | . . . . . Secondary . | . . . . . Self-Inflicted Damage 4 | . . . 4 . Shots 1 | . . . 1 . Rammed 7 | . 3 1 1 2 Targets Rammed 8 | . 4 1 1 2 Kicked . | . . . . . Crushed 1 | . 1 . . . Highest Temperature 285 | . 285 153 13 24 Average Temperature 80 | . 87 84 5 14 Received Heat Transfer 378 | . 72 69 237 . Effects 1 | . 1 . . . Energy Bleed 1 | . 1 . . . Siege Activations . | . . . . . Robots Corrupted . | . . . . . Combat Hostiles . | . . . . . Parts Fried . | . . . . . Impact Corruptions . | . . . . . Robots Melted . | . . . . . Combat Hostiles . | . . . . . Parts Melted 10 | . 4 3 1 2 Heat Transferred 2923 | . 1406 481 370 666 Parts Sabotaged . | . . . . . Parts Stolen . | . . . . . Parts Stripped . | . . . . . Power Chain Reactions . | . . . . . Alert | -11 -10 -10 -9 -8 ------- Run | Yrd Mat Min Mat Mat Peak Influence 262 | . 185 81 262 200 Initial 110 | . . 31 31 110 Average 84 | . 56 54 167 154 Maximum Alert Level 1 | . . . 1 1 Low Security (%) 91 | 100 100 100 44 95 Level 1 8 | . . . 55 4 Level 2 . | . . . . . Level 3 . | . . . . . Level 4 . | . . . . . Level 5 . | . . . . . High Security . | . . . . . Max Security . | . . . . . Squads Dispatched 1 | . . . . 1 Investigation . | . . . . . Extermination . | . . . . . Reinforcement 1 | . . . . 1 Assault . | . . . . . Garrison . | . . . . . Intercept . | . . . . . Searches Triggered . | . . . . . Construction Impeded . | . . . . . Haulers Reinforced . | . . . . . Active Scanning Responses . | . . . . . Cargo Convoy Interrupts . | . . . . . Stealth | -11 -10 -10 -9 -8 --------- Run | Yrd Mat Min Mat Mat Distress Signals 4 | . 1 . 1 2 Communications Jammed . | . . . . . Distress Signals . | . . . . . Times Spotted 39 | . 10 2 12 15 Peak Tracking Total 5 | . 2 2 4 5 Tactical Retreats 5 | . 1 . 1 3 Traps | -11 -10 -10 -9 -8 ------- Run | Yrd Mat Min Mat Mat Traps Triggered . | . . . . . Indirectly . | . . . . . Trap Hack Attempts . | . . . . . Triggered . | . . . . . Disarmed . | . . . . . Reprogrammed . | . . . . . Reused . | . . . . . Traps Extracted . | . . . . . Installed . | . . . . . Triggered . | . . . . . Machines | -11 -10 -10 -9 -8 ---------- Run | Yrd Mat Min Mat Mat Machines Disabled 1 | . . . 1 . Max in Single Turn 1 | . . . 1 . Machines Repaired . | . . . . . Machines Dismantled . | . . . . . Machines Sabotaged . | . . . . . Overloaded Fab Kills . | . . . . . Hacking | -11 -10 -10 -9 -8 --------- Run | Yrd Mat Min Mat Mat Machines Accessed 2 | . 1 1 . . Terminals 1 | . 1 . . . Fabricators . | . . . . . Repair Stations . | . . . . . Recycling Units . | . . . . . Scanalyzers . | . . . . . Garrison Access . | . . . . . Total Hacks 2 | . 1 1 . . Successful 1 | . . 1 . . Failed 1 | . 1 . . . Catastrophic . | . . . . . Database Lockouts . | . . . . . Manual 1 | . 1 . . . Terminals 1 | . 1 . . . Fabricators . | . . . . . Repair Stations . | . . . . . Recycling Units . | . . . . . Scanalyzers . | . . . . . Garrison Access . | . . . . . Terminal Hacks 1 | . . 1 . . Open Door 1 | . . 1 . . Fabricator Hacks . | . . . . . Repair Station Hacks . | . . . . . Recycling Unit Hacks . | . . . . . Scanalyzer . | . . . . . Garrison Access Hacks . | . . . . . Unauthorized Hacks . | . . . . . Terminals . | . . . . . Fabricators . | . . . . . Repair Stations . | . . . . . Recycling Units . | . . . . . Scanalyzers . | . . . . . Garrison Access . | . . . . . Data Cores Recovered . | . . . . . Used . | . . . . . Hacking Detections . | . . . . . Full Trace Events . | . . . . . Feedback Events . | . . . . . Feedback Blocked . | . . . . . Robot Schematics Acquired . | . . . . . Robots Built . | . . . . . Authchips . | . . . . . Time . | . . . . . Total Robot Build Rating . | . . . . . Part Schematics Acquired . | . . . . . Parts Built . | . . . . . Authchips . | . . . . . Time . | . . . . . Total Part Build Rating . | . . . . . Parts Repaired . | . . . . . Time . | . . . . . Parts Recycled . | . . . . . Recycled Matter . | . . . . . Retrieved Matter . | . . . . . Retrieved Components . | . . . . . Parts Scanalyzed . | . . . . . Part Schematics Acquired . | . . . . . Parts Damaged . | . . . . . Bothacking | -11 -10 -10 -9 -8 ------------ Run | Yrd Mat Min Mat Mat Used RIF Installer . | . . . . . Robots Hacked . | . . . . . Non-combat . | . . . . . Combat . | . . . . . Robot Hacks Applied . | . . . . . Relay Couplers Released . | . . . . . Fabnet Peak Effective % . | . . . . . Robots Rewired . | . . . . . Allies Hacked . | . . . . . Hacks Repelled . | . . . . . Allies | -11 -10 -10 -9 -8 -------- Run | Yrd Mat Min Mat Mat Total Allies . | . . . . . Largest Group . | . . . . . Highest-Rated Group . | . . . . . Highest-Rated Ally . | . . . . . Total Orders . | . . . . . Ally Attacks . | . . . . . Total Damage . | . . . . . Kills . | . . . . . Allies Corrupted . | . . . . . Allies Melted . | . . . . . Intel | -11 -10 -10 -9 -8 ------- Run | Yrd Mat Min Mat Mat Robot Analysis Total . | . . . . . Derelict Logs Recovered . | . . . . . Drone Launches 20 | . . . . 20 Drone Recoveries 19 | . . . . 19 Exploration | -11 -10 -10 -9 -8 ------------- Run | Yrd Mat Min Mat Mat Turns Passed 1440 | 108 682 194 214 242 Spaces Moved 652 | 55 336 100 102 59 Core 32 | 23 . . . 9 Treads 620 | 32 336 100 102 50 Legs . | . . . . . Wheels . | . . . . . Hover . | . . . . . Flight . | . . . . . Fastest Speed 50 | 50 160 160 160 160 Average Speed 170 | 161 160 160 160 278 Slowest Speed 950 | 250 160 160 160 950 Overloaded Moves . | . . . . . Propulsion Burnouts . | . . . . . Robots Hopped . | . . . . . Cave-ins Triggered . | . . . . . Exploration Rate (%) 18 | 6 41 20 16 10 Regions Visited 4 Branch Regions 1 Pre-discovered Areas . | . . . . . Known Exits Taken . | . . . . . Unknown Exits Taken 4 | 1 1 1 1 . Scrap Searched . | . . . . . Spaces Dug . | . . . . . Terrain Destroyed 43 | . . . 43 . Melee . | . . . . . Projectile . | . . . . . AOE 43 | . . . 43 . Terrain Rammed . | . . . . . Walls Destroyed . | . . . . . Machines Disabled . | . . . . . Actions | -11 -10 -10 -9 -8 --------- Run | Yrd Mat Min Mat Mat Total 839 | 70 425 120 129 95 Wait 45 | 4 30 11 . . Move 648 | 54 335 99 101 59 Hop . | . . . . . Pick Up 17 | 3 12 1 1 . Fast Attach 11 | 6 2 . 1 2 Attach 10 | . 1 . 4 5 Detach 1 | . 1 . . . Swap 11 | 3 4 . 3 1 Drop 10 | . 8 1 . 1 Fire 78 | . 28 7 18 25 Melee . | . . . . . Ram 2 | . . . . 2 Kick . | . . . . . Crush 6 | . 4 1 1 . Escape Stasis . | . . . . . Rewire . | . . . . . Trap . | . . . . . Miscellaneous . | . . . . . Route ------- -11/Scrapyard -10/Materials (discovered 3 exits: *Mat / *Min x2) -10/Mines -9/Materials -8/Materials History --------- Turn | Location | Event 51 | -11/Scrapyard | Discovered new exit (range 14) 109 | -11/Scrapyard | Entered Materials 309 | -10/Materials | Build established: Mutant 481 | -10/Materials | Discovered new exit (range 16) 580 | -10/Materials | Discovered new exit (range 4) 586 | -10/Materials | Discovered new exit (range 15) 791 | -10/Materials | Entered Mines 847 | -10/Mines | Found a hidden stash of uninstalled traps 929 | -10/Mines | Discovered new exit (range 10) 938 | -10/Mines | Assembled infested the area 957 | -10/Mines | Found the Drone Emporium 965 | -10/Mines | Found Prototype Device 985 | -10/Mines | Entered Materials 985 | -9/Materials | Evolved 2 slots: Propulsion x2 1123 | -9/Materials | Discovered new exit (range 15) 1199 | -9/Materials | Entered another Materials area 1199 | -8/Materials | Evolved 2 slots: Propulsion x1, Weapon x1 1324 | -8/Materials | Identified Sensor Drone Bay 1353 | -8/Materials | Lost 11 parts (1p5n1u4w) 1420 | -8/Materials | Core integrity fell below 50% 1437 | -8/Materials | Core integrity fell below 20% 1441 | -8/Materials | Destroyed by H-61 Shepherd with Heavy Assault Cannon Last Messages --------------- W-25 Informer sends out distress signal. R-06 Scavenger collects Welding Torch. K-01 Serf collects debris. Knocked back. R-06 Scavenger collects Terrain Scan Processor. Sensor Drone retrieved by Sensor Drone Bay. K-01 Serf collects debris. Knocked back. R-06 Scavenger collects Structural Scanner. K-01 Serf collects debris. R-06 Scavenger collects Hpw. Shotgun. R-06 Scavenger collects Shotgun. Knocked back. K-01 Serf collects debris. R-06 Scavenger collects Nuclear Core. R-06 Scavenger collects VSS Leg. K-01 Serf collects debris. Assault Rifle destroyed. K-01 Serf collects debris. Knocked back. Map ----- +----------------------------------------------------+ | | | | | | | | | ?????????????????????????????????????????????????? | | ?????????????????????????????????????????????????? | | ?????????????????????????????????????????????????? | | ????????????????###########??????????????????????? | | ????????????????# #??????????????????????? | | ????????????????# #??????????????????????? | | ????????????????#""" """ #??????????????????????? | | ????????????????#""" """ #??????????????????????? | | ????????????????#"S """ #????#####?????????????? | | ????????????????#""" #????# #?????????????? | | ????????????????# "" #????# #?????????????? | | ????????????????# #????# #?????????????? | | ????????????????#####+########## #?????????????? | | ???????##########" #?????????????? | | ???????# # #?????????????? | | ???????# # % #?????????????? | | ???????# # % ###############?????????????? | | ???????# ==# # #??????????????? | | ???????# [ #%% # #??????????????? | | ???????# * +% + #??????????????? | | ???????# # # !! #??????????????? | | ???????# # # @ #??????????????? | | ???????########### ####ss########??????????????? | | ?????????????????# ## u#?????????????????????? | | ?????????????????# ## s #?????????????????????? | | ?????????????????# ## % #?????????????????????? | | ?????????????????+ ##! % #?????????????????????? | | ?????????????????# ##!! %#?????????????????????? | | ?????????????????# ##! H#?????????????????????? | | ?????????????????# ## %u #?????????????????????? | | ????????????????? ###k##?????????????????????? | | ???????????? ?????????????????????? | | ??????????? ???????????????????? | | ?????????? % ?????????????????? | | ??????????? #### ##########+#???????????????? | | ????????????????###+##??????????? ??????????????? | | ????????????????? ???????????????? #????????????? | | ???????????????? ???????????????????????????????? | | ??????????????? ????????????????????????????????? | | ??????????????? ?????????????????????????????????? | | ?????????????????????????????????????????????????? | | ?????????????????????????????????????????????????? | | ?????????????????????????????????????????????????? | | ?????????????????????????????????????????????????? | | ?????????????????????????????????????????????????? | | ?????????????????????????????????????????????????? | +----------------------------------------------------+ Best States ------------- Heat Dissipation 45 Energy Generation 14 Energy Capacity 250 Matter Stores 300 Matter Capacity 300 Sight Range 20 Terrain Scan Density 10 Propulsion Shielding 33 Evasion (%) 40 Recoil Reduction 4 Item Schematics ----------------- None Robot Schematics ------------------ None Fabricated ------------ Nothing Alien Tech Used ----------------- None Achievements -------------- Release The Drones! Challenges ------------ None Game ------ Seed ZhirovImprovedMultirail Manual? 0 Play Time 00:14:48 Cumulative 12.8 hours Start 2024.05.04 @ 13:10:00 End 2024.05.04 @ 13:23:00 Sessions 1 Manual Loads 0 Difficulty Rogue Special Mode None Game No. 28 Rogue 28 Adventurer 0 Explorer 0 Win Type - Total 0 Types 0/0/0/0/0/0/0/0/0 Lore% 16 Gallery% 17 Achievement% 17 Wizard Run 0 Options --------- Layout 1 ASCII 0 Keyboard 0 Movement Vi Keybinds 0 Fullscreen 2 Font 32/SmallcapsGlow Map View 50x35 Zoom Use 0% Tactical HUD 0 Map Filters NONE Filters NONE Steam 1 RUN: b71158c1-5368-45ce-8029-f11d62295d68